[Event "*** Titled Tuesday 3|2 Blitz"]
[Site "Chess.com"]
[Date "2016.04.05"]
[Round "1"]
[White "FrankieJay"]
[Black "spectralsoul"]
[Result "1/2-1/2"]
[WhiteElo "2281"]
[BlackElo "2567"]
[TimeControl "180+2"]
[EndTime "11:11:09 PDT"]
[Termination "Game drawn by agreement"]

1. e4 {[%clk 0:03:01.6]} 1... d6 {[%clk 0:02:59]} 2. d4 {[%clk 0:03:01.7]} 2...
Nf6 {[%clk 0:03:00.2]} 3. Nc3 {[%clk 0:03:03]} 3... g6 {[%clk 0:03:01.1]} 4. f4
{[%clk 0:03:04.1]} 4... Bg7 {[%clk 0:03:02.2]} 5. Nf3 {[%clk 0:03:05.7]} 5...
O-O {[%clk 0:03:03.4]} 6. e5 {[%clk 0:03:06.3]} 6... dxe5 {[%clk 0:03:02.4]} 7.
fxe5 {[%clk 0:03:06.5]} 7... Nd5 {[%clk 0:03:01.9]} 8. Bc4 {[%clk 0:02:49.8]}
8... Be6 {[%clk 0:03:01.7]} 9. Qe2 {[%clk 0:02:36.5]} 9... c5 {[%clk 0:02:54.5]}
10. Nxd5 {[%clk 0:02:32]} 10... Bxd5 {[%clk 0:02:55]} 11. Bxd5 {[%clk
0:02:33.4]} 11... Qxd5 {[%clk 0:02:55.8]} 12. c4 {[%clk 0:02:35]} 12... Qd7
{[%clk 0:02:50.1]} 13. d5 {[%clk 0:02:31]} 13... b5 {[%clk 0:02:51.3]} 14. b3
{[%clk 0:02:23.2]} 14... bxc4 {[%clk 0:02:49]} 15. bxc4 {[%clk 0:02:25.1]} 15...
e6 {[%clk 0:02:47.3]} 16. d6 {[%clk 0:02:06.1]} 16... Nc6 {[%clk 0:02:38.3]} 17.
O-O {[%clk 0:02:06.2]} 17... f6 {[%clk 0:02:39.2]} 18. Bb2 {[%clk 0:01:49.6]}
18... fxe5 {[%clk 0:02:36]} 19. Nxe5 {[%clk 0:01:45.2]} 19... Qxd6 {[%clk
0:02:30]} 20. Nxc6 {[%clk 0:01:44.2]} 20... Bxb2 {[%clk 0:02:22.7]} 21. Qxb2
{[%clk 0:01:45.5]} 21... Qxc6 {[%clk 0:02:23.9]} 22. Qe5 {[%clk 0:01:42]} 22...
Rf5 {[%clk 0:02:20.9]} 23. Rxf5 {[%clk 0:01:36.8]} 23... exf5 {[%clk 0:02:22.3]}
24. Rd1 {[%clk 0:01:23.3]} 24... Re8 {[%clk 0:02:18.6]} 25. Qd5+ {[%clk
0:01:18.2]} 25... Qxd5 {[%clk 0:02:19.8]} 26. Rxd5 {[%clk 0:01:19.4]} 26... Re2
{[%clk 0:02:11.8]} 27. Rxc5 {[%clk 0:01:20.4]} 27... Rxa2 {[%clk 0:02:12.7]} 28.
Rc7 {[%clk 0:01:21.9]} 28... a5 {[%clk 0:02:10.4]} 29. c5 {[%clk 0:01:19.4]}
29... Rc2 {[%clk 0:02:10.7]} 30. c6 {[%clk 0:01:18.3]} 30... a4 {[%clk
0:02:04.4]} 31. Ra7 {[%clk 0:01:19.1]} 31... Rxc6 {[%clk 0:02:03.8]} 32. Rxa4
{[%clk 0:01:20.3]} 32... Rc2 {[%clk 0:02:05]} 33. h3 {[%clk 0:01:21.4]} 33...
Kg7 {[%clk 0:02:05.9]} 34. Kh2 {[%clk 0:01:22.4]} 34... Kh6 {[%clk 0:02:05.6]}
35. Kg3 {[%clk 0:01:22.6]} 35... g5 {[%clk 0:02:04.7]} 36. Ra3 {[%clk
0:01:15.3]} 36... Kh5 {[%clk 0:02:03.8]} 37. Rb3 {[%clk 0:01:05.6]} 37... f4+
{[%clk 0:01:56.5]} 38. Kf3 {[%clk 0:01:06.9]} 38... Kh4 {[%clk 0:01:53.4]} 39.
Rb6 {[%clk 0:00:43.2]} 39... Rc3+ {[%clk 0:01:44.1]} 40. Kf2 {[%clk 0:00:44.2]}
40... Rc2+ {[%clk 0:01:45.1]} 41. Kf3 {[%clk 0:00:45.3]} 41... Kh5 {[%clk
0:01:43.5]} 42. Ra6 {[%clk 0:00:43.3]} 42... Rc3+ {[%clk 0:01:37.6]} 43. Kf2
{[%clk 0:00:44.2]} 43... Rd3 {[%clk 0:01:31.9]} 44. Rb6 {[%clk 0:00:44.8]} 44...
Rd7 {[%clk 0:01:25]} 45. Kf3 {[%clk 0:00:44.8]} 45... Re7 {[%clk 0:01:26.1]} 46.
Ra6 {[%clk 0:00:44.9]} 46... Re3+ {[%clk 0:01:23]} 47. Kf2 {[%clk 0:00:46]}
47... Rb3 {[%clk 0:01:22]} 48. Rc6 {[%clk 0:00:46.8]} 48... Rb1 {[%clk
0:01:21.4]} 49. Ra6 {[%clk 0:00:47.3]} 49... Rh1 {[%clk 0:01:22]} 50. Rb6 {[%clk
0:00:47.5]} 50... Rc1 {[%clk 0:01:23.1]} 51. Ra6 {[%clk 0:00:48.7]} 51... Rc2+
{[%clk 0:01:23.6]} 52. Kf3 {[%clk 0:00:49.7]} 52... Rc3+ {[%clk 0:01:25.1]} 53.
Kf2 {[%clk 0:00:51.1]} 53... h6 {[%clk 0:01:20.2]} 54. Rb6 {[%clk 0:00:52.1]}
54... Rc8 {[%clk 0:01:20]} 55. Ra6 {[%clk 0:00:53.2]} 55... Rh8 {[%clk
0:01:21.6]} 56. Kf3 {[%clk 0:00:54.1]} 56... Kh4 {[%clk 0:01:23.1]} 57. Rb6
{[%clk 0:00:54.3]} 57... h5 {[%clk 0:01:23.8]} 58. Kf2 {[%clk 0:00:54.4]} 58...
g4 {[%clk 0:01:24]} 59. hxg4 {[%clk 0:00:55]} 59... hxg4 {[%clk 0:01:25.1]} 60.
Rb7 {[%clk 0:00:55]} 60... Rc8 {[%clk 0:01:21.3]} 61. Rh7+ {[%clk 0:00:56.2]}
61... Kg5 {[%clk 0:01:22.5]} 62. Rg7+ {[%clk 0:00:57.8]} 62... Kf5 {[%clk
0:01:23.1]} 63. Rf7+ {[%clk 0:00:59.3]} 63... Ke5 {[%clk 0:01:24.1]} 64. Re7+
{[%clk 0:01:00.8]} 64... Kf6 {[%clk 0:01:25.7]} 65. Re2 {[%clk 0:00:50.7]} 65...
Rc3 {[%clk 0:01:26.4]} 66. Ra2 {[%clk 0:00:50.7]} 66... Kg5 {[%clk 0:01:25.7]}
67. Rb2 {[%clk 0:00:42.5]} 67... Kh4 {[%clk 0:01:26.8]} 68. Ra2 {[%clk
0:00:33.8]} 68... Rb3 {[%clk 0:01:10.5]} 69. Rc2 {[%clk 0:00:33.8]} 69... g3+
{[%clk 0:01:06.9]} 70. Ke2 {[%clk 0:00:33.2]} 70... Kg4 {[%clk 0:00:40.1]} 71.
Rc8 {[%clk 0:00:30.4]} 71... Rb2+ {[%clk 0:00:40.4]} 72. Kf1 {[%clk 0:00:31.9]}
72... Rb1+ {[%clk 0:00:39.4]} 73. Ke2 {[%clk 0:00:33.2]} 73... Rg1 {[%clk
0:00:40.1]} 74. Rg8+ {[%clk 0:00:34.7]} 74... Kh5 {[%clk 0:00:41.5]} 75. Rh8+
{[%clk 0:00:31]} 75... Kg6 {[%clk 0:00:42.9]} 76. Kf3 {[%clk 0:00:31]} 76...
Rf1+ {[%clk 0:00:43.9]} 77. Kg4 {[%clk 0:00:32.2]} 77... Rf2 {[%clk 0:00:45.4]}
78. Rf8 {[%clk 0:00:29.4]} 78... Rxg2 {[%clk 0:00:38.5]} 79. Rxf4 {[%clk
0:00:30.6]} 79... Rg1 {[%clk 0:00:30.9]} 80. Ra4 {[%clk 0:00:31.3]} 80... g2
{[%clk 0:00:29.7]} 81. Kg3 {[%clk 0:00:32.6]} 81... Kg5 {[%clk 0:00:29.5]} 82.
Ra5+ {[%clk 0:00:32.3]} 82... Kf6 {[%clk 0:00:30.9]} 83. Ra2 {[%clk 0:00:34.2]}
83... Rf1 {[%clk 0:00:30.5]} 84. Kxg2 {[%clk 0:00:35.1]} 1/2-1/2

[Event "*** Titled Tuesday 3|2 Blitz"]
[Site "Chess.com"]
[Date "2016.04.05"]
[Round "1"]
[White "Colombiano07"]
[Black "manubibi"]
[Result "1-0"]
[WhiteElo "2137"]
[BlackElo "2457"]
[TimeControl "180+2"]
[EndTime "11:11:12 PDT"]
[Termination "Colombiano07 won by checkmate"]

1. d4 {[%clk 0:02:51.9]} 1... Nf6 {[%clk 0:03:00.2]} 2. Bf4 {[%clk 0:02:50.9]}
2... g6 {[%clk 0:02:57.1]} 3. e3 {[%clk 0:02:45.9]} 3... d6 {[%clk 0:02:57.4]}
4. Nf3 {[%clk 0:02:44.6]} 4... Bg7 {[%clk 0:02:58.6]} 5. Be2 {[%clk 0:02:40.5]}
5... O-O {[%clk 0:02:59.6]} 6. O-O {[%clk 0:02:40.7]} 6... Nfd7 {[%clk
0:03:00.6]} 7. c3 {[%clk 0:02:38.8]} 7... e5 {[%clk 0:03:01.6]} 8. dxe5 {[%clk
0:02:39]} 8... dxe5 {[%clk 0:03:02.5]} 9. Bg5 {[%clk 0:02:34.2]} 9... f6 {[%clk
0:03:01.1]} 10. Bh4 {[%clk 0:02:34.8]} 10... Nc6 {[%clk 0:03:02.2]} 11. Nbd2
{[%clk 0:02:32.8]} 11... Qe7 {[%clk 0:03:01.2]} 12. a4 {[%clk 0:02:30.3]} 12...
g5 {[%clk 0:03:01.7]} 13. Bg3 {[%clk 0:02:30.4]} 13... f5 {[%clk 0:03:02.9]} 14.
h4 {[%clk 0:02:25.8]} 14... g4 {[%clk 0:02:53.5]} 15. Ne1 {[%clk 0:02:16.1]}
15... f4 {[%clk 0:02:52.3]} 16. exf4 {[%clk 0:02:11.9]} 16... exf4 {[%clk
0:02:53.2]} 17. Bh2 {[%clk 0:02:12.9]} 17... h5 {[%clk 0:02:33.1]} 18. Nc4
{[%clk 0:02:08]} 18... Qxh4 {[%clk 0:02:27]} 19. Bxf4 {[%clk 0:02:05.8]} 19...
Rxf4 {[%clk 0:02:00.4]} 20. g3 {[%clk 0:02:05.5]} 20... Qf6 {[%clk 0:02:01.8]}
21. gxf4 {[%clk 0:02:06.4]} 21... Qxf4 {[%clk 0:02:03.1]} 22. Qd5+ {[%clk
0:02:04.8]} 22... Kf8 {[%clk 0:02:02.3]} 23. Qxh5 {[%clk 0:02:05.5]} 23... Nf6
{[%clk 0:02:03.4]} 24. Qh2 {[%clk 0:02:02.6]} 24... Qe4 {[%clk 0:02:03.8]} 25.
Bd3 {[%clk 0:01:59.1]} 25... Qd5 {[%clk 0:02:03.4]} 26. Qxc7 {[%clk 0:01:57.8]}
26... Be6 {[%clk 0:01:57.5]} 27. Qd6+ {[%clk 0:01:56.6]} 27... Qxd6 {[%clk
0:01:57.2]} 28. Nxd6 {[%clk 0:01:58.5]} 28... Rd8 {[%clk 0:01:58.7]} 29. Nxb7
{[%clk 0:01:53.6]} 29... Rd5 {[%clk 0:01:54.1]} 30. Bc4 {[%clk 0:01:53.4]} 30...
Ne5 {[%clk 0:01:53.3]} 31. Bxd5 {[%clk 0:01:53.3]} 31... Bxd5 {[%clk 0:01:55.2]}
32. Nd6 {[%clk 0:01:51.4]} 32... Nh5 {[%clk 0:01:49.7]} 33. Rd1 {[%clk 0:01:45]}
33... Bc6 {[%clk 0:01:45.3]} 34. b3 {[%clk 0:01:34.7]} 34... Nf4 {[%clk
0:01:44.9]} 35. Kh2 {[%clk 0:01:25.5]} 35... Ne2 {[%clk 0:01:37.7]} 36. Nd3
{[%clk 0:01:16.6]} 36... Nf3+ {[%clk 0:01:18.1]} 37. Kh1 {[%clk 0:01:08.8]}
37... Nd2+ {[%clk 0:01:08.4]} 38. Kh2 {[%clk 0:00:54.5]} 38... Nf3+ {[%clk
0:01:06.9]} 39. Kh1 {[%clk 0:00:54.3]} 39... Nd2+ {[%clk 0:00:57.4]} 40. Kh2
{[%clk 0:00:54.6]} 40... Nf3+ {[%clk 0:00:44.5]} 41. Kh1 {[%clk 0:00:55.4]}
41... Nd2+ {[%clk 0:00:37]} 42. Kh2 {[%clk 0:00:56.2]} 42... Nf3+ {[%clk
0:00:36.7]} 43. Kh1 {[%clk 0:00:33.2]} 43... g3 {[%clk 0:00:37.9]} 44. Nb4
{[%clk 0:00:25.2]} 44... g2+ {[%clk 0:00:10.9]} 45. Kxg2 {[%clk 0:00:25.6]}
45... Ne1+ {[%clk 0:00:12.6]} 46. Kh2 {[%clk 0:00:16.8]} 46... Nf3+ {[%clk
0:00:13.2]} 47. Kh1 {[%clk 0:00:15.4]} 47... Ba8 {[%clk 0:00:12.3]} 48. c4
{[%clk 0:00:12.8]} 48... Be5 {[%clk 0:00:11.6]} 49. Nf5 {[%clk 0:00:11.1]} 49...
Nfd4+ {[%clk 0:00:11.8]} 50. Nd5 {[%clk 0:00:11.2]} 50... Nxf5 {[%clk
0:00:13.3]} 51. Rde1 {[%clk 0:00:12.2]} 51... Nfd4 {[%clk 0:00:13]} 52. f4
{[%clk 0:00:11.3]} 52... Bd6 {[%clk 0:00:13.9]} 53. Kh2 {[%clk 0:00:11.5]} 53...
Nc3 {[%clk 0:00:15]} 54. Kh3 {[%clk 0:00:10.8]} 54... Nxd5 {[%clk 0:00:16.2]}
55. cxd5 {[%clk 0:00:11.4]} 55... Bxd5 {[%clk 0:00:18.1]} 56. Rd1 {[%clk
0:00:12.5]} 56... Be6+ {[%clk 0:00:19.2]} 57. Kg2 {[%clk 0:00:11.5]} 57... Bc5
{[%clk 0:00:19.1]} 58. b4 {[%clk 0:00:10.4]} 58... Bxb4 {[%clk 0:00:14.7]} 59.
Rxd4 {[%clk 0:00:10.8]} 59... Bc5 {[%clk 0:00:16.6]} 60. Rdd1 {[%clk 0:00:08.6]}
60... Bf5 {[%clk 0:00:17.1]} 61. Kf3 {[%clk 0:00:09.5]} 61... Ke7 {[%clk
0:00:15.6]} 62. Rd5 {[%clk 0:00:10.3]} 62... Bh3 {[%clk 0:00:15.9]} 63. Re1+
{[%clk 0:00:10]} 63... Kf6 {[%clk 0:00:15.7]} 64. Rxc5 {[%clk 0:00:11.1]} 64...
Bd7 {[%clk 0:00:17.3]} 65. Rd1 {[%clk 0:00:11]} 65... Bxa4 {[%clk 0:00:18.4]}
66. Rd6+ {[%clk 0:00:12]} 66... Ke7 {[%clk 0:00:19.7]} 67. Ra6 {[%clk
0:00:13.9]} 67... Bd1+ {[%clk 0:00:21.2]} 68. Ke3 {[%clk 0:00:14.4]} 68... Bg4
{[%clk 0:00:19.6]} 69. Rg5 {[%clk 0:00:13.6]} 69... Bc8 {[%clk 0:00:19.3]} 70.
Rg7+ {[%clk 0:00:14.3]} 70... Kf8 {[%clk 0:00:18.4]} 71. Raxa7 {[%clk
0:00:16.2]} 71... Be6 {[%clk 0:00:18.6]} 72. Rh7 {[%clk 0:00:16.5]} 72... Kg8
{[%clk 0:00:19.4]} 73. Rhe7 {[%clk 0:00:17.5]} 73... Bc4 {[%clk 0:00:19.3]} 74.
Re8# {[%clk 0:00:18.3]} 1-0

[Event "*** Titled Tuesday 3|2 Blitz"]
[Site "Chess.com"]
[Date "2016.04.05"]
[Round "1"]
[White "Alexander_Donchenko"]
[Black "Er_is_geen_hoop_meer"]
[Result "1/2-1/2"]
[WhiteElo "2595"]
[BlackElo "2300"]
[TimeControl "180+2"]
[EndTime "11:11:44 PDT"]
[Termination "Game drawn by agreement"]

1. d4 {[%clk 0:03:01.9]} 1... Nf6 {[%clk 0:02:59.3]} 2. c4 {[%clk 0:03:01.6]}
2... g6 {[%clk 0:03:00.2]} 3. g3 {[%clk 0:03:02.8]} 3... Bg7 {[%clk 0:03:00.5]}
4. Bg2 {[%clk 0:03:04.4]} 4... O-O {[%clk 0:03:02.4]} 5. Nc3 {[%clk 0:03:05.3]}
5... d6 {[%clk 0:03:04.3]} 6. Nf3 {[%clk 0:03:06.9]} 6... Nbd7 {[%clk 0:03:05]}
7. O-O {[%clk 0:03:08.4]} 7... e5 {[%clk 0:03:06.5]} 8. e4 {[%clk 0:03:10.1]}
8... h6 {[%clk 0:03:07.6]} 9. h3 {[%clk 0:03:11.1]} 9... Nh7 {[%clk 0:03:08.6]}
10. Be3 {[%clk 0:03:10.1]} 10... Ng5 {[%clk 0:03:09.8]} 11. Nxg5 {[%clk
0:03:10.6]} 11... hxg5 {[%clk 0:03:11.7]} 12. Qd2 {[%clk 0:03:11.2]} 12... exd4
{[%clk 0:03:10.1]} 13. Bxd4 {[%clk 0:03:12.4]} 13... Ne5 {[%clk 0:03:11.8]} 14.
b3 {[%clk 0:03:11.3]} 14... g4 {[%clk 0:03:12.7]} 15. hxg4 {[%clk 0:03:12.2]}
15... Bxg4 {[%clk 0:03:13.9]} 16. f3 {[%clk 0:03:12.6]} 16... Be6 {[%clk
0:03:10.5]} 17. f4 {[%clk 0:03:12.3]} 17... Nc6 {[%clk 0:03:11.7]} 18. Bxg7
{[%clk 0:03:12]} 18... Kxg7 {[%clk 0:03:13.6]} 19. f5 {[%clk 0:03:13.2]} 19...
Bd7 {[%clk 0:03:09.5]} 20. f6+ {[%clk 0:03:13.5]} 20... Kh7 {[%clk 0:03:10.8]}
21. Qg5 {[%clk 0:02:36.9]} 21... Rh8 {[%clk 0:02:37.6]} 22. Rf4 {[%clk
0:02:36.5]} 22... Kg8 {[%clk 0:02:29.4]} 23. Nd5 {[%clk 0:02:30.1]} 23... Be6
{[%clk 0:02:26.9]} 24. Kf2 {[%clk 0:02:21.8]} 24... Rh5 {[%clk 0:02:27.5]} 25.
Ne7+ {[%clk 0:01:36.4]} 25... Nxe7 {[%clk 0:02:23]} 26. fxe7 {[%clk 0:01:37.7]}
26... Rxg5 {[%clk 0:02:23.8]} 27. exd8=Q+ {[%clk 0:01:39]} 27... Rxd8 {[%clk
0:02:25.7]} 28. Rh1 {[%clk 0:01:35.9]} 28... Kg7 {[%clk 0:02:22.4]} 29. Rfh4
{[%clk 0:01:35.5]} 29... a5 {[%clk 0:02:21.8]} 30. Bf3 {[%clk 0:01:30.8]} 30...
a4 {[%clk 0:02:21.1]} 31. Rh7+ {[%clk 0:01:28.6]} 31... Kf6 {[%clk 0:02:21.7]}
32. Rh8 {[%clk 0:01:30.5]} 32... Rxh8 {[%clk 0:02:17.9]} 33. Rxh8 {[%clk
0:01:32.4]} 33... axb3 {[%clk 0:02:11.7]} 34. axb3 {[%clk 0:01:34.3]} 34... Ra5
{[%clk 0:02:13.3]} 35. Rb8 {[%clk 0:01:32]} 35... b6 {[%clk 0:02:14.2]} 36. Rb7
{[%clk 0:01:32.7]} 36... Ra2+ {[%clk 0:02:09.4]} 37. Ke1 {[%clk 0:01:33.3]}
37... Rb2 {[%clk 0:02:08]} 38. Bd1 {[%clk 0:01:34.2]} 38... Ke5 {[%clk
0:02:04.8]} 39. Rxc7 {[%clk 0:01:33.9]} 39... Kxe4 {[%clk 0:01:54.5]} 40. Rc6
{[%clk 0:01:34.7]} 40... d5 {[%clk 0:01:53.9]} 41. cxd5 {[%clk 0:01:33.4]} 41...
Bxd5 {[%clk 0:01:55.8]} 42. Rxb6 {[%clk 0:01:31.5]} 42... Ke3 {[%clk 0:01:55.9]}
43. Rd6 {[%clk 0:01:16.9]} 43... Rh2 {[%clk 0:01:56.3]} 44. Rf6 {[%clk
0:01:07.4]} 44... Bg2 {[%clk 0:01:47.1]} 45. Be2 {[%clk 0:01:05.1]} 45... Rh1+
{[%clk 0:01:21.9]} 46. Bf1 {[%clk 0:01:06.2]} 46... Bd5 {[%clk 0:00:57.1]} 47.
b4 {[%clk 0:01:06]} 47... Rh8 {[%clk 0:00:53.1]} 48. Rd6 {[%clk 0:01:01.3]}
48... Be4 {[%clk 0:00:51]} 49. Ra6 {[%clk 0:00:57.4]} 49... Rb8 {[%clk 0:00:47]}
50. Ra3+ {[%clk 0:00:58]} 50... Kd4 {[%clk 0:00:47.4]} 51. b5 {[%clk 0:00:58.3]}
51... f5 {[%clk 0:00:45.8]} 52. Kf2 {[%clk 0:00:54.9]} 52... g5 {[%clk 0:00:47]}
53. Ra4+ {[%clk 0:00:53.7]} 53... Ke5 {[%clk 0:00:48.4]} 54. Ra5 {[%clk
0:00:50.3]} 54... f4 {[%clk 0:00:49.1]} 55. g4 {[%clk 0:00:47]} 55... Kd4 {[%clk
0:00:49]} 56. Ra4+ {[%clk 0:00:45.7]} 56... Ke5 {[%clk 0:00:50.1]} 57. Ra7
{[%clk 0:00:44.2]} 57... Rh8 {[%clk 0:00:47.3]} 58. Rg7 {[%clk 0:00:34.3]} 58...
Rh2+ {[%clk 0:00:47.5]} 59. Ke1 {[%clk 0:00:34.3]} 59... Kd4 {[%clk 0:00:48.2]}
60. Rxg5 {[%clk 0:00:30.4]} 60... Ke3 {[%clk 0:00:49.1]} 61. Rc5 {[%clk
0:00:31.2]} 61... Rb2 {[%clk 0:00:46]} 62. Rc3+ {[%clk 0:00:30.6]} 62... Kd4
{[%clk 0:00:47.3]} 63. Ra3 {[%clk 0:00:29.3]} 63... f3 {[%clk 0:00:43.7]} 64.
Ra4+ {[%clk 0:00:23.6]} 64... Ke3 {[%clk 0:00:45.1]} 65. Ra3+ {[%clk 0:00:23.3]}
65... Kf4 {[%clk 0:00:46.5]} 66. Bc4 {[%clk 0:00:21.7]} 66... Rb1+ {[%clk
0:00:41.7]} 67. Kf2 {[%clk 0:00:22.5]} 67... Rb2+ {[%clk 0:00:43.1]} 68. Kg1
{[%clk 0:00:23.4]} 68... Rb4 {[%clk 0:00:41.8]} 69. Bf1 {[%clk 0:00:15]} 69...
Kxg4 {[%clk 0:00:43]} 70. Kf2 {[%clk 0:00:15.3]} 70... Kf4 {[%clk 0:00:42.5]}
71. Ra2 {[%clk 0:00:14.6]} 71... Rb1 {[%clk 0:00:43.1]} 72. Rd2 {[%clk 0:00:15]}
72... Rc1 {[%clk 0:00:43.8]} 73. Rb2 {[%clk 0:00:15.5]} 73... Rc8 {[%clk
0:00:44.7]} 74. b6 {[%clk 0:00:16.6]} 74... Rb8 {[%clk 0:00:45.1]} 75. Ba6
{[%clk 0:00:18]} 75... Rh8 {[%clk 0:00:45.8]} 76. Ke1 {[%clk 0:00:11.8]} 76...
Rh1+ {[%clk 0:00:46.7]} 77. Bf1 {[%clk 0:00:13.4]} 77... Bd3 {[%clk 0:00:47]}
78. b7 {[%clk 0:00:14.8]} 78... Ke3 {[%clk 0:00:44]} 79. Rf2 {[%clk 0:00:12.4]}
79... Rh8 {[%clk 0:00:43.5]} 80. Bxd3 {[%clk 0:00:12.7]} 80... Kxd3 {[%clk
0:00:44.6]} 81. Rxf3+ {[%clk 0:00:10.9]} 81... Kc4 {[%clk 0:00:46]} 82. Rf7
{[%clk 0:00:10.3]} 82... Kc5 {[%clk 0:00:47]} 83. Rc7+ {[%clk 0:00:10.7]} 83...
Kb6 {[%clk 0:00:48.4]} 84. Rc8 {[%clk 0:00:12.1]} 84... Rh1+ {[%clk 0:00:50]}
85. Kf2 {[%clk 0:00:13.5]} 85... Kxb7 {[%clk 0:00:51.9]} 86. Rc3 {[%clk
0:00:14.1]} 86... Rh2+ {[%clk 0:00:52.6]} 87. Kg1 {[%clk 0:00:15.2]} 1/2-1/2

[Event "*** Titled Tuesday 3|2 Blitz"]
[Site "Chess.com"]
[Date "2016.04.05"]
[Round "1"]
[White "SCIM"]
[Black "VSERGUEI"]
[Result "1/2-1/2"]
[WhiteElo "2145"]
[BlackElo "2446"]
[TimeControl "180+2"]
[EndTime "11:12:07 PDT"]
[Termination "Game drawn - insufficient material"]

1. d4 {[%clk 0:02:53.1]} 1... d5 {[%clk 0:03:00.7]} 2. c4 {[%clk 0:02:52.8]}
2... c6 {[%clk 0:03:01.3]} 3. Nf3 {[%clk 0:02:53.6]} 3... Nf6 {[%clk 0:03:02.4]}
4. e3 {[%clk 0:02:54.1]} 4... Bf5 {[%clk 0:03:01.7]} 5. Nc3 {[%clk 0:02:45.8]}
5... e6 {[%clk 0:03:02.3]} 6. Nh4 {[%clk 0:02:46]} 6... Bg6 {[%clk 0:03:03.1]}
7. Qb3 {[%clk 0:02:42.8]} 7... Qb6 {[%clk 0:02:57.4]} 8. Nxg6 {[%clk 0:02:42.5]}
8... hxg6 {[%clk 0:02:57.1]} 9. Be2 {[%clk 0:02:41.3]} 9... Nbd7 {[%clk
0:02:56.7]} 10. h3 {[%clk 0:02:36.8]} 10... Be7 {[%clk 0:02:56.8]} 11. O-O
{[%clk 0:02:33]} 11... O-O {[%clk 0:02:56.7]} 12. Qc2 {[%clk 0:02:24.2]} 12...
Rac8 {[%clk 0:02:50.3]} 13. cxd5 {[%clk 0:02:20.5]} 13... cxd5 {[%clk 0:02:50]}
14. Bd2 {[%clk 0:02:10.9]} 14... Ne4 {[%clk 0:02:47.4]} 15. Rfc1 {[%clk
0:02:09.2]} 15... Nxd2 {[%clk 0:02:46.9]} 16. Qxd2 {[%clk 0:02:09.5]} 16... Nf6
{[%clk 0:02:31.9]} 17. a3 {[%clk 0:02:04.1]} 17... a6 {[%clk 0:02:23.6]} 18. b4
{[%clk 0:02:00.5]} 18... Rc6 {[%clk 0:02:12.7]} 19. Na4 {[%clk 0:01:53.9]} 19...
Qc7 {[%clk 0:02:12.8]} 20. Rxc6 {[%clk 0:01:51]} 20... Qxc6 {[%clk 0:02:13.2]}
21. Nc5 {[%clk 0:01:51.2]} 21... a5 {[%clk 0:02:11.6]} 22. Rc1 {[%clk
0:01:40.7]} 22... axb4 {[%clk 0:02:09.7]} 23. axb4 {[%clk 0:01:34.5]} 23... Rc8
{[%clk 0:02:00.5]} 24. Nd3 {[%clk 0:01:23.4]} 24... Qe8 {[%clk 0:01:58.5]} 25.
Bf3 {[%clk 0:00:54]} 25... Rc4 {[%clk 0:01:51.9]} 26. Nc5 {[%clk 0:00:43.8]}
26... b6 {[%clk 0:01:50.2]} 27. Nd3 {[%clk 0:00:42.5]} 27... Qa4 {[%clk
0:01:38.1]} 28. Ne5 {[%clk 0:00:39.8]} 28... Qxb4 {[%clk 0:00:38.2]} 29. Nxc4
{[%clk 0:00:36.6]} 29... dxc4 {[%clk 0:00:27.2]} 30. Qxb4 {[%clk 0:00:37]} 30...
Bxb4 {[%clk 0:00:27.1]} 31. Rxc4 {[%clk 0:00:38.5]} 31... Ba5 {[%clk 0:00:25.8]}
32. Rc8+ {[%clk 0:00:38.9]} 32... Kh7 {[%clk 0:00:26.2]} 33. Rc7 {[%clk
0:00:39.7]} 33... Kg8 {[%clk 0:00:26.8]} 34. Rb7 {[%clk 0:00:40.6]} 34... g5
{[%clk 0:00:27.7]} 35. g3 {[%clk 0:00:40.5]} 35... g6 {[%clk 0:00:28.1]} 36. e4
{[%clk 0:00:40.4]} 36... Kf8 {[%clk 0:00:20.3]} 37. e5 {[%clk 0:00:34.7]} 37...
Ng8 {[%clk 0:00:14.2]} 38. Rb8+ {[%clk 0:00:28.4]} 38... Kg7 {[%clk 0:00:14.3]}
39. d5 {[%clk 0:00:29.4]} 39... exd5 {[%clk 0:00:15]} 40. Bxd5 {[%clk
0:00:30.1]} 40... Ne7 {[%clk 0:00:16.1]} 41. Be4 {[%clk 0:00:30.9]} 41... Bc3
{[%clk 0:00:16.9]} 42. Rb7 {[%clk 0:00:28.2]} 42... Kf8 {[%clk 0:00:17.1]} 43.
Rb8+ {[%clk 0:00:27.2]} 43... Kg7 {[%clk 0:00:18.3]} 44. Rxb6 {[%clk 0:00:27]}
44... Bxe5 {[%clk 0:00:18.8]} 45. Rb7 {[%clk 0:00:28]} 45... Bf6 {[%clk
0:00:19.7]} 46. Kg2 {[%clk 0:00:27.4]} 46... Kf8 {[%clk 0:00:20.5]} 47. Bd3
{[%clk 0:00:27.5]} 47... Kg7 {[%clk 0:00:21.5]} 48. Bc4 {[%clk 0:00:28.3]} 48...
Kf8 {[%clk 0:00:22.3]} 49. Kf3 {[%clk 0:00:29.2]} 49... Kg7 {[%clk 0:00:23.3]}
50. Ke4 {[%clk 0:00:29.4]} 50... Kf8 {[%clk 0:00:24.2]} 51. f4 {[%clk
0:00:28.7]} 51... gxf4 {[%clk 0:00:23.3]} 52. Kxf4 {[%clk 0:00:29]} 52... Kg7
{[%clk 0:00:23.9]} 53. g4 {[%clk 0:00:29.3]} 53... g5+ {[%clk 0:00:23.4]} 54.
Ke4 {[%clk 0:00:29.8]} 54... Kf8 {[%clk 0:00:24.5]} 55. Rb6 {[%clk 0:00:28]}
55... Kg7 {[%clk 0:00:25.4]} 56. Ra6 {[%clk 0:00:28.3]} 56... Ng6 {[%clk
0:00:25.5]} 57. Ra7 {[%clk 0:00:26.3]} 57... Ne7 {[%clk 0:00:26.3]} 58. Ra2
{[%clk 0:00:20.7]} 58... Kf8 {[%clk 0:00:26.4]} 59. Rf2 {[%clk 0:00:20.6]} 59...
Kg7 {[%clk 0:00:27.5]} 60. Rf1 {[%clk 0:00:21.5]} 60... Ng6 {[%clk 0:00:27.6]}
61. Bd5 {[%clk 0:00:20.4]} 61... Ne7 {[%clk 0:00:28.1]} 62. h4 {[%clk 0:00:19]}
62... gxh4 {[%clk 0:00:28.4]} 63. g5 {[%clk 0:00:19.8]} 63... Bxg5 {[%clk
0:00:29.1]} 64. Rxf7+ {[%clk 0:00:19.7]} 64... Kg6 {[%clk 0:00:30]} 65. Be6
{[%clk 0:00:17.5]} 65... Ng8 {[%clk 0:00:25.2]} 66. Rf1 {[%clk 0:00:17.2]} 66...
Nf6+ {[%clk 0:00:26]} 67. Ke5 {[%clk 0:00:18.2]} 67... Kh6 {[%clk 0:00:20]} 68.
Kf5 {[%clk 0:00:18.5]} 68... Nh5 {[%clk 0:00:21.1]} 69. Ra1 {[%clk 0:00:17.8]}
69... Ng7+ {[%clk 0:00:22]} 70. Ke5 {[%clk 0:00:18.4]} 70... Nxe6 {[%clk
0:00:22.6]} 71. Kxe6 {[%clk 0:00:19.4]} 71... Kg6 {[%clk 0:00:24]} 72. Rg1
{[%clk 0:00:17.3]} 72... Kh6 {[%clk 0:00:20.8]} 73. Kf5 {[%clk 0:00:17.2]} 73...
Be3 {[%clk 0:00:21.9]} 74. Rg4 {[%clk 0:00:16.5]} 74... Bf2 {[%clk 0:00:21.6]}
75. Rg6+ {[%clk 0:00:16.5]} 75... Kh7 {[%clk 0:00:22.2]} 76. Rg5 {[%clk
0:00:16.1]} 76... Bg3 {[%clk 0:00:23]} 77. Kg4 {[%clk 0:00:16.4]} 77... Kh6
{[%clk 0:00:23.9]} 78. Rb5 {[%clk 0:00:17]} 78... Kg6 {[%clk 0:00:24.9]} 79.
Rb6+ {[%clk 0:00:17.8]} 79... Kf7 {[%clk 0:00:26.1]} 80. Ra6 {[%clk 0:00:19.1]}
80... Ke7 {[%clk 0:00:27.5]} 81. Kh3 {[%clk 0:00:18.6]} 81... Kd7 {[%clk
0:00:28.7]} 82. Ra4 {[%clk 0:00:20]} 82... Ke7 {[%clk 0:00:29.9]} 83. Rg4 {[%clk
0:00:20.5]} 83... Kd7 {[%clk 0:00:30.9]} 84. Rg6 {[%clk 0:00:21.2]} 84... Ke7
{[%clk 0:00:32]} 85. Rh6 {[%clk 0:00:22.3]} 85... Kd7 {[%clk 0:00:33.1]} 86. Kg4
{[%clk 0:00:23.2]} 86... Ke7 {[%clk 0:00:34]} 87. Kf5 {[%clk 0:00:24]} 87... Kd7
{[%clk 0:00:35.2]} 88. Ke4 {[%clk 0:00:24.6]} 88... Ke7 {[%clk 0:00:36.3]} 89.
Rxh4 {[%clk 0:00:23.3]} 89... Bxh4 {[%clk 0:00:36.7]} 1/2-1/2